bitfinex/quotes_BTCUSD_20240731
["timestamp","ask_amount","ask_price","bid_price","bid_amount"]
[1722459601933,0.00191301,64678.0,64677.0,0.03132689]
[1722459601934,0.46874901,64678.0,64677.0,0.03132689]
[1722459602149,1.08719701,64678.0,64677.0,0.03132689]
[1722459602351,1.42484858,64678.0,64677.0,0.03132689]
[1722459602560,1.0421486,64678.0,64677.0,0.03132689]
[1722459602763,0.92407301,64678.0,64677.0,0.01532689]
[1722459602965,0.154626,64673.0,64661.0,0.0814]
[1722459603172,0.154627,64672.0,64662.0,0.14955172]
[1722459603378,0.04554481,64673.0,64662.0,0.14955172]
[1722459603583,0.154626,64672.0,64662.0,0.14955172]
[1722459603785,0.04556589,64673.0,64663.0,0.00305029]
[1722459603999,0.04556589,64674.0,64664.0,0.14955172]
[1722459604200,0.15462,64675.0,64664.0,0.14955172]
[1722459604201,0.04556589,64675.0,64664.0,0.14955172]
[1722459604621,0.002,64676.0,64665.0,0.0030498]
[1722459604622,0.005,64672.0,64665.0,0.0030498]
[1722459604825,0.20018489,64675.0,64666.0,0.14955172]
[1722459605036,0.20018489,64675.0,64667.0,0.0030498]
[1722459605245,0.20018489,64675.0,64668.0,0.14955172]
[1722459605457,0.04556589,64675.0,64668.0,0.14955172]
[1722459605720,0.07476412,64670.0,64668.0,0.14955172]
[1722459605924,0.07476412,64670.0,64660.0,0.07259725]
[1722459605925,0.002,64668.0,64660.0,0.07259725]
[1722459606129,0.154638,64667.0,64661.0,0.14955172]
[1722459606330,0.154638,64667.0,64662.0,0.1]
[1722459606563,0.154638,64667.0,64660.0,0.07259725]
[1722459606564,0.154638,64667.0,64663.0,0.14955172]
[1722459606801,0.002,64664.0,64663.0,0.14955172]
[1722459607231,0.07221479,64669.0,64663.0,0.14955172]
[1722459607232,0.04756589,64667.0,64663.0,0.14955172]
[1722459607436,0.154645,64664.0,64663.0,0.14955172]
[1722459607635,0.04856589,64667.0,64663.0,0.14955172]
[1722459607909,0.003,64667.0,64663.0,0.14915823]
[1722459608111,0.04556589,64668.0,64663.0,0.15015823]
[1722459608112,0.00039348,64666.0,64663.0,0.15015823]
[1722459608270,0.002,64668.0,64663.0,0.15015823]
[1722459608611,0.003,64667.0,64663.0,0.15015823]
[1722459609214,0.00039348,64666.0,64663.0,0.15015823]
[1722459609435,0.00039348,64666.0,64663.0,0.14915823]
[1722459609594,0.00039348,64666.0,64663.0,0.1507658]
[1722459609937,0.04558975,64668.0,64663.0,0.14220013]
[1722459609938,0.00078591,64667.0,64663.0,0.14220013]
[1722459610319,0.00278591,64667.0,64663.0,0.14220013]
[1722459610479,0.002,64667.0,64663.0,0.14220013]
[1722459610678,0.00247846,64666.0,64663.0,0.14520013]
[1722459611031,0.00247846,64666.0,64663.0,0.14220013]
[1722459611032,0.001,64666.0,64663.0,0.14220013]
[1722459611179,0.0015542,64665.0,64663.0,0.14220013]
[1722459611380,0.12504395,64665.0,64663.0,0.004]
[1722459611585,0.5323445,64664.0,64663.0,0.004]
[1722459611839,0.2266077,64664.0,64663.0,0.004]
[1722459612212,0.47135639,64664.0,64663.0,0.004]
[1722459612407,0.53976753,64664.0,64663.0,0.004]
[1722459612708,0.002,64659.0,64653.0,0.0666]
[1722459612972,0.002,64659.0,64654.0,0.14955172]
[1722459613212,0.002,64658.0,64654.0,0.14955172]
[1722459613526,0.309324,64657.0,64648.0,0.5368]
[1722459613729,0.002,64653.0,64649.0,0.14955172]
[1722459613927,0.154662,64657.0,64653.0,0.006]
[1722459614223,0.154662,64657.0,64649.0,0.14955172]
[1722459614224,0.154665,64656.0,64649.0,0.14955172]
[1722459614477,0.04560448,64657.0,64649.0,0.14955172]
[1722459614478,0.154667,64655.0,64649.0,0.14955172]
[1722459614680,0.154667,64655.0,64654.0,0.007]
[1722459614910,0.002,64655.0,64654.0,0.007]
[1722459615113,0.156667,64655.0,64654.0,0.007]
[1722459615370,1.163569,64655.0,64654.0,0.007]
[1722459615638,0.92681309,64655.0,64654.0,0.007]
[1722459615824,0.98275999,64655.0,64654.0,0.007]
[1722459616046,0.154681,64649.0,64648.0,0.4715]
[1722459616251,0.154681,64649.0,64645.0,0.0087]
[1722459616252,0.0455375,64649.0,64645.0,0.0087]
[1722459616456,0.0455375,64650.0,64646.0,0.14955172]
[1722459616604,0.002,64649.0,64646.0,0.14955172]
[1722459617062,0.002,64649.0,64645.0,0.0087]
[1722459617236,0.156688,64646.0,64645.0,0.0087]
[1722459618247,0.002,64646.0,64645.0,0.0087]
[1722459618415,0.466065,64646.0,64645.0,0.0087]
[1722459619379,0.18194725,64646.0,64645.0,0.0087]
[1722459619575,0.49132425,64646.0,64645.0,0.0087]
[1722459619774,0.49032425,64646.0,64645.0,0.0087]
[1722459619985,0.49132425,64646.0,64645.0,0.0087]
[1722459620222,0.02525925,64646.0,64645.0,0.0087]
[1722459620461,0.001,64646.0,64645.0,0.0087]
[1722459620685,0.002,64646.0,64645.0,0.0087]
[1722459621355,0.002,64646.0,64638.0,0.1878]
[1722459621588,0.0015542,64645.0,64639.0,0.14955172]
[1722459621824,0.0015542,64645.0,64639.0,0.15260546]
[1722459622315,0.0015542,64646.0,64639.0,0.15260546]
[1722459622540,0.0035542,64646.0,64639.0,0.15260546]
[1722459622744,0.0025542,64646.0,64639.0,0.15260546]
[1722459622962,0.0015542,64646.0,64639.0,0.15260546]
[1722459623167,0.0015542,64649.0,64646.0,0.0766]
[1722459623445,0.0015542,64649.0,64648.0,0.2204]
[1722459623643,0.04552365,64655.0,64648.0,0.37300396]
[1722459623849,0.5545,64661.0,64649.0,0.14955172]
[1722459624092,0.5545,64661.0,64655.0,0.2204]
[1722459624093,0.0805,64661.0,64655.0,0.2204]
[1722459624307,0.002,64662.0,64656.0,0.14955172]
[1722459624597,0.04554156,64665.0,64656.0,0.15260304]
[1722459624762,0.07031234,64667.0,64656.0,0.15260304]
[1722459624763,0.002,64667.0,64656.0,0.15260304]
[1722459624910,0.154638,64667.0,64656.0,0.13660304]
[1722459625118,0.002,64666.0,64656.0,0.13660304]
[1722459625316,0.154638,64667.0,64656.0,0.13660304]
[1722459625317,0.002,64663.0,64656.0,0.13660304]
[1722459625565,0.156661,64658.0,64656.0,0.13355172]
[1722459625807,0.002,64661.0,64656.0,0.13355172]
[1722459626017,0.04554746,64665.0,64660.0,0.2204]
[1722459626224,0.04554746,64665.0,64661.0,0.22770222]
[1722459626635,0.002,64669.0,64661.0,0.22770222]
[1722459626850,0.002,64667.0,64661.0,0.22770222]
[1722459627055,0.002,64668.0,64661.0,0.22465172]
[1722459627281,0.04554746,64675.0,64662.0,0.00304987]
[1722459627490,0.06832119,64676.0,64672.0,0.2204]
[1722459627699,0.06832119,64676.0,64673.0,0.29349983]
[1722459627907,0.00091301,64678.0,64673.0,0.29045172]
[1722459629179,0.002,64677.0,64673.0,0.14955172]
[1722459629349,0.00291301,64678.0,64673.0,0.14955172]
[1722459629495,0.00191301,64678.0,64673.0,0.15555172]
[1722459629713,0.00191301,64678.0,64674.0,0.00304861]
[1722459629714,0.00291301,64678.0,64674.0,0.00304861]
[1722459629916,0.00191301,64678.0,64675.0,0.14955172]
[1722459630120,0.00191301,64678.0,64676.0,0.00304806]
[1722459630121,0.00091301,64678.0,64676.0,0.00304806]
[1722459630328,0.00091301,64678.0,64677.0,0.30416572]
[1722459630537,0.00091301,64678.0,64677.0,0.14955172]
[1722459630771,0.00091301,64678.0,64677.0,0.15259913]
[1722459631235,0.00091301,64678.0,64677.0,0.14955172]
[1722459631455,0.00091301,64678.0,64673.0,0.004]
[1722459631456,0.00291301,64678.0,64673.0,0.004]
[1722459631672,0.00291301,64678.0,64671.0,0.00926611]
[1722459631673,0.07476412,64677.0,64674.0,0.14955172]
[1722459631892,0.07676412,64677.0,64674.0,0.14955172]
[1722459632110,0.07476412,64677.0,64675.0,0.006]
[1722459632332,0.07476412,64677.0,64676.0,0.14955172]
[1722459632540,0.002,64673.0,64663.0,0.1439]
[1722459632769,0.002,64673.0,64664.0,0.24955172]
[1722459632977,0.002,64667.0,64664.0,0.14955172]
[1722459633417,0.30925,64673.0,64664.0,0.14955172]
[1722459633418,0.309271,64669.0,64664.0,0.14955172]
[1722459633620,0.154638,64667.0,64664.0,0.14955172]
[1722459633821,0.07476412,64669.0,64664.0,0.14955172]
[1722459634038,0.154636,64668.0,64664.0,0.15855172]
[1722459634283,0.309263,64670.0,64664.0,0.15855172]
[1722459634498,0.154639,64667.0,64664.0,0.15855172]
[1722459634706,0.15464,64666.0,64664.0,0.15855172]
[1722459634908,0.309272,64668.0,64664.0,0.009]
[1722459634909,0.154643,64665.0,64664.0,0.009]
[1722459635106,0.35470253,64674.0,64657.0,0.07341407]
[1722459635107,0.15465,64662.0,64657.0,0.00921407]
[1722459635309,0.35471553,64671.0,64658.0,0.14955172]
[1722459635504,0.154647,64664.0,64658.0,0.14955172]
[1722459636159,0.154657,64659.0,64658.0,0.14955172]
[1722459636367,0.154662,64657.0,64656.0,0.00083]
[1722459636558,0.00486643,64665.0,64656.0,0.15038172]
[1722459636559,0.154659,64659.0,64656.0,0.15038172]
[1722459636779,0.310292,64664.0,64657.0,0.14955172]
[1722459636969,0.154655,64660.0,64657.0,0.14955172]
[1722459637171,0.310292,64664.0,64657.0,0.14955172]
[1722459637172,0.309305,64661.0,64657.0,0.14955172]
[1722459637398,0.463944,64663.0,64657.0,0.14955172]
[1722459637604,0.154653,64661.0,64657.0,0.14955172]
[1722459637755,0.154655,64660.0,64657.0,0.14955172]
[1722459637971,0.002,64664.0,64657.0,0.14955172]
[1722459638154,0.154659,64658.0,64657.0,0.14955172]
[1722459638763,0.154662,64657.0,64656.0,0.00083]
[1722459638973,0.155662,64657.0,64656.0,0.00783]
[1722459639166,0.77817687,64657.0,64656.0,0.00783]
[1722459639375,0.77917687,64657.0,64656.0,0.00883]
[1722459639575,0.77817687,64657.0,64656.0,0.00083]
[1722459639803,0.463986,64657.0,64656.0,0.00083]
[1722459640026,0.77431,64657.0,64656.0,0.00783]
[1722459640231,1.082634,64657.0,64656.0,0.00083]
[1722459640428,1.162734,64657.0,64656.0,0.00083]
[1722459640655,1.162734,64657.0,64656.0,0.00783]
[1722459641066,1.225434,64657.0,64656.0,0.00783]
[1722459642754,1.24969133,64657.0,64656.0,0.00783]
[1722459642966,1.225434,64657.0,64656.0,0.00783]
[1722459644072,0.91611,64657.0,64656.0,0.00783]
[1722459644708,1.225434,64657.0,64656.0,0.00783]
[1722459645771,1.24969155,64657.0,64656.0,0.00783]
[1722459645989,0.94036755,64657.0,64656.0,0.00783]
[1722459646403,0.91611,64657.0,64656.0,0.00783]
[1722459648296,0.96153122,64657.0,64656.0,0.00783]
[1722459648528,1.27085522,64657.0,64656.0,0.00783]
[1722459649029,0.91611,64657.0,64656.0,0.00783]
[1722459649454,1.225434,64657.0,64656.0,0.00783]
[1722459649667,0.94036777,64657.0,64656.0,0.00083]
[1722459650138,0.94936777,64657.0,64656.0,0.00283]
[1722459650339,1.31310345,64657.0,64656.0,0.00283]
[1722459650549,1.00377945,64657.0,64656.0,0.00283]
[1722459650777,0.95836777,64657.0,64656.0,0.00283]
[1722459651005,0.93411,64657.0,64656.0,0.00283]
[1722459651234,0.97952168,64657.0,64656.0,0.00283]
[1722459651967,0.97953665,64657.0,64656.0,0.00283]
[1722459652879,0.97953511,64657.0,64656.0,0.00283]
[1722459653384,0.97953511,64657.0,64656.0,0.00233]
[1722459654369,0.91683511,64657.0,64656.0,0.00233]
[1722459655097,0.83673511,64657.0,64656.0,0.00233]
[1722459655351,0.481986,64657.0,64656.0,0.00233]
[1722459655608,0.481986,64657.0,64656.0,0.15188172]
[1722459655609,0.04225787,64657.0,64656.0,0.15188172]
[1722459655870,0.018,64657.0,64656.0,0.15188172]
[1722459656358,0.009,64657.0,64656.0,0.15088172]
[1722459656632,0.465986,64657.0,64656.0,0.00033]
[1722459656840,0.467986,64657.0,64656.0,0.00033]
[1722459657100,0.465986,64657.0,64656.0,0.00033]
[1722459658081,0.77531,64657.0,64656.0,0.00033]
[1722459658329,0.85361,64657.0,64656.0,0.00033]
[1722459658564,0.87786658,64657.0,64656.0,0.00933]
[1722459658819,1.162934,64657.0,64656.0,0.00933]
[1722459659148,0.85161,64657.0,64656.0,0.00033]
[1722459659361,1.160934,64657.0,64656.0,0.00033]
[1722459659608,1.165934,64657.0,64656.0,0.00033]
[1722459659863,1.162934,64657.0,64656.0,0.00033]
[1722459660100,1.162934,64657.0,64656.0,0.00133]
[1722459660101,1.171934,64657.0,64656.0,0.00133]
[1722459660336,1.180934,64657.0,64656.0,0.00233]
[1722459660878,1.28548832,64657.0,64656.0,0.00233]
[1722459661156,1.04431842,64657.0,64656.0,0.00233]
[1722459661698,1.06892001,64657.0,64656.0,0.00233]
[1722459662393,1.04466217,64657.0,64656.0,0.00233]
[1722459662643,0.9765138,64657.0,64656.0,0.00233]
[1722459663591,0.9049313,64657.0,64656.0,0.00233]
[1722459664604,0.0533213,64657.0,64656.0,0.00233]
[1722459664991,0.02,64657.0,64656.0,0.29508172]
[1722459665998,0.011,64657.0,64656.0,0.29408172]
[1722459666205,0.06815081,64658.0,64656.0,0.29308172]
[1722459666415,0.06815081,64658.0,64657.0,0.14955172]
[1722459666825,0.09086775,64659.0,64657.0,0.14955172]
[1722459667245,0.09086775,64659.0,64658.0,0.00305151]
[1722459667445,0.09086775,64659.0,64658.0,0.15260323]
[1722459668060,0.11358468,64661.0,64658.0,0.15260323]
[1722459668281,0.11358468,64661.0,64659.0,0.14955172]
[1722459669363,0.07476412,64660.0,64659.0,0.14955172]
[1722459669760,0.02425293,64660.0,64659.0,0.14955172]
[1722459670715,0.154643,64665.0,64659.0,0.14955172]
[1722459670926,0.154641,64666.0,64659.0,0.14955172]
[1722459671151,0.07476412,64662.0,64659.0,0.14955172]
[1722459671398,0.154649,64663.0,64659.0,0.14955172]
[1722459671602,0.15514999,64662.0,64659.0,0.14955172]
[1722459671952,0.15465,64662.0,64659.0,0.14955172]
[1722459672156,0.154648,64663.0,64659.0,0.15055172]
[1722459672367,0.001,64660.0,64659.0,0.14955172]
[1722459672777,0.002,64663.0,64659.0,0.14955172]
[1722459672929,0.154644,64665.0,64659.0,0.14955172]
[1722459673133,0.001,64662.0,64659.0,0.14955172]
[1722459674745,0.154655,64660.0,64659.0,0.14955172]
[1722459674919,0.463965,64660.0,64659.0,0.14955172]
[1722459675121,0.49552961,64660.0,64659.0,0.15155172]
[1722459675319,1.34931253,64660.0,64659.0,0.002]
[1722459675520,1.34931253,64660.0,64656.0,0.00033]
[1722459675521,0.77331,64657.0,64656.0,0.00033]
[1722459675731,0.2584842,64657.0,64656.0,0.00033]
[1722459676010,0.8771322,64657.0,64656.0,0.00033]
[1722459676823,0.96030907,64657.0,64656.0,0.00033]
[1722459677059,0.8771322,64657.0,64656.0,0.00033]
[1722459677403,0.96193077,64657.0,64656.0,0.00033]
[1722459677820,1.27722693,64657.0,64656.0,0.00133]
[1722459677982,1.27567273,64657.0,64656.0,0.00133]
[1722459678204,1.29393008,64657.0,64656.0,0.00033]
[1722459678401,1.26967273,64657.0,64656.0,0.00033]
[1722459678619,1.26967273,64657.0,64656.0,0.00133]
[1722459678821,1.27167273,64657.0,64656.0,0.00133]
[1722459679027,1.26967273,64657.0,64656.0,0.00133]
[1722459679226,1.26967273,64657.0,64656.0,0.00233]
[1722459679496,1.26967273,64657.0,64656.0,0.00133]
[1722459679985,1.28567273,64657.0,64656.0,0.00233]
[1722459681033,1.27767273,64657.0,64656.0,0.00133]
[1722459681442,1.28567273,64657.0,64656.0,0.00233]
[1722459681646,1.52276698,64657.0,64656.0,0.00233]
[1722459681853,1.68025673,64657.0,64656.0,0.00233]
[1722459682272,1.67981614,64657.0,64656.0,0.00233]
[1722459682882,1.80902608,64657.0,64656.0,0.00233]
[1722459683088,1.73775835,64657.0,64656.0,0.00233]
[1722459683290,1.84123325,64657.0,64656.0,0.00233]
[1722459683494,1.85064577,64657.0,64656.0,0.00233]
[1722459683909,1.85057172,64657.0,64656.0,0.00233]
[1722459684525,1.74669596,64657.0,64656.0,0.00233]
[1722459684728,2.64865522,64657.0,64656.0,0.00233]
[1722459684933,2.64865522,64657.0,64656.0,0.00123069]
[1722459684934,2.82286509,64657.0,64656.0,0.00123069]
[1722459685144,3.04687235,64657.0,64656.0,0.00123069]
[1722459685346,2.82286509,64657.0,64656.0,0.00123069]
[1722459685551,3.03887235,64657.0,64656.0,0.00023069]
[1722459685763,0.773537,64638.0,64637.0,0.0087]
[1722459686241,0.91156555,64638.0,64637.0,0.0087]
[1722459686462,1.1072136,64638.0,64637.0,0.0087]
[1722459686717,0.7977986,64638.0,64637.0,0.0087]
[1722459686953,1.22091416,64638.0,64637.0,0.0087]
[1722459687152,1.22291416,64638.0,64637.0,0.0087]
[1722459687364,1.084952,64638.0,64637.0,0.0087]
[1722459687590,1.086952,64638.0,64637.0,0.0087]
[1722459688279,1.20064214,64638.0,64637.0,0.0087]
[1722459688699,1.396367,64638.0,64637.0,0.0087]
[1722459688906,1.4659063,64638.0,64637.0,0.0087]
[1722459689322,1.18828826,64638.0,64637.0,0.0087]
[1722459689575,1.1564913,64638.0,64637.0,0.0087]
[1722459690525,1.21257302,64638.0,64637.0,0.0087]
[1722459690750,1.27848674,64638.0,64637.0,0.0087]
[1722459690969,1.01669869,64638.0,64637.0,0.0087]
[1722459691187,0.87054823,64638.0,64637.0,0.0087]
[1722459691423,0.86992636,64638.0,64637.0,0.0087]
[1722459691644,0.777537,64638.0,64637.0,0.0087]
[1722459691856,1.27884344,64638.0,64637.0,0.0087]
[1722459692088,1.27882291,64638.0,64637.0,0.0087]
[1722459692264,1.18801959,64638.0,64637.0,0.0087]
[1722459692671,1.13123089,64638.0,64637.0,0.0087]
[1722459692919,1.19932076,64638.0,64637.0,0.0087]
[1722459693426,1.19931863,64638.0,64637.0,0.0087]
[1722459693636,1.13003772,64638.0,64637.0,0.0087]
[1722459693837,1.13061167,64638.0,64637.0,0.0087]
[1722459694253,1.19869197,64638.0,64637.0,0.0087]
[1722459694693,1.1306135,64638.0,64637.0,0.0087]
[1722459694893,1.16242897,64638.0,64637.0,0.0087]
[1722459695109,1.18669241,64638.0,64637.0,0.0087]
[1722459695516,1.3548637,64638.0,64637.0,0.0087]
[1722459695719,1.26409241,64638.0,64637.0,0.0087]
[1722459695932,1.6642787,64638.0,64637.0,0.0087]
[1722459696344,1.87383042,64638.0,64637.0,0.0087]
[1722459696551,1.87225981,64638.0,64637.0,0.0087]
[1722459696748,1.44938069,64638.0,64637.0,0.0087]
[1722459697198,1.29982897,64638.0,64637.0,0.0087]
[1722459697410,1.23116747,64638.0,64637.0,0.0087]
[1722459697612,1.29901272,64638.0,64637.0,0.0087]
[1722459698036,1.41234439,64638.0,64637.0,0.0087]
[1722459698265,1.84862129,64638.0,64637.0,0.0087]
[1722459698490,1.29901272,64638.0,64637.0,0.0087]
[1722459698703,1.38963656,64638.0,64637.0,0.0087]
[1722459699171,1.32327744,64638.0,64637.0,0.0087]
[1722459699401,1.33124866,64638.0,64637.0,0.0087]
[1722459699637,0.99917721,64638.0,64637.0,0.0087]
[1722459699888,0.97491249,64638.0,64637.0,0.0087]
[1722459700117,0.58809749,64638.0,64637.0,0.0087]
[1722459700349,0.85219772,64638.0,64637.0,0.0087]
[1722459700565,0.85308563,64638.0,64637.0,0.0087]
[1722459700799,0.92091521,64638.0,64637.0,0.0087]
[1722459701050,0.23425563,64638.0,64637.0,0.0087]
[1722459701299,0.17201781,64638.0,64637.0,0.0087]
[1722459701541,0.07273316,64638.0,64637.0,0.23815172]
[1722459701773,0.07273316,64638.0,64637.0,0.29905172]
[1722459702666,0.07073316,64638.0,64637.0,0.30818537]
[1722459702889,0.07173316,64638.0,64637.0,0.30818537]
[1722459703092,0.093994,64638.0,64637.0,0.30818537]
[1722459703556,0.095994,64638.0,64637.0,0.30818537]
[1722459704058,0.093994,64638.0,64637.0,0.30818537]
[1722459704300,0.07073316,64638.0,64637.0,0.30405172]
[1722459704784,0.07073316,64638.0,64637.0,0.0746]
[1722459705500,0.77645001,64638.0,64637.0,0.0137]
[1722459705757,0.46703501,64638.0,64637.0,0.0137]
[1722459705992,0.77645001,64638.0,64637.0,0.0137]
[1722459706224,0.82185814,64638.0,64637.0,0.0137]
[1722459706458,0.77645001,64638.0,64637.0,0.0137]
[1722459707170,0.46703501,64638.0,64637.0,0.0137]
[1722459707479,0.00291301,64638.0,64637.0,0.0137]
[1722459707917,0.15762001,64638.0,64637.0,0.0137]
[1722459708114,0.16148793,64638.0,64637.0,0.0137]
[1722459708324,0.47090293,64638.0,64637.0,0.0137]
[1722459708533,0.2069133,64638.0,64637.0,0.0137]
[1722459708765,0.20304538,64638.0,64637.0,0.0137]
[1722459708945,0.2069133,64638.0,64637.0,0.0137]
[1722459709168,0.47090293,64638.0,64637.0,0.0137]
[1722459710097,0.00291301,64638.0,64637.0,0.0137]
[1722459710391,0.04837328,64638.0,64637.0,0.16325172]
[1722459710554,0.00291301,64638.0,64637.0,0.16325172]
[1722459710952,0.00291301,64638.0,64637.0,0.0137]
[1722459711201,1.63947051,64638.0,64637.0,0.0137]
[1722459711409,1.40413516,64638.0,64637.0,0.0137]
[1722459711604,1.3798726,64638.0,64637.0,0.0137]
[1722459712128,1.3788726,64638.0,64637.0,0.0137]
[1722459712332,1.3868726,64638.0,64637.0,0.0137]
[1722459712552,1.38736063,64638.0,64637.0,0.0137]
[1722459712763,1.38636063,64638.0,64637.0,0.0087]
[1722459713166,1.32802159,64638.0,64637.0,0.0097]
[1722459713371,0.88170659,64638.0,64637.0,0.0097]
[1722459713596,0.99687545,64638.0,64637.0,0.0097]
[1722459714032,0.88319905,64638.0,64637.0,0.0097]
[1722459714448,0.99687973,64638.0,64637.0,0.0097]
[1722459714859,0.9074634,64638.0,64637.0,0.0097]
[1722459715092,0.07290783,64638.0,64637.0,0.0097]
[1722459715289,0.08665552,64638.0,64637.0,0.15925172]
[1722459715499,0.04117736,64638.0,64637.0,0.15925172]
[1722459715705,0.04117736,64638.0,64637.0,0.29875172]
[1722459716120,0.02517736,64638.0,64637.0,0.45246172]
[1722459716336,0.79871436,64638.0,64637.0,0.0087]
[1722459716541,0.89766378,64638.0,64637.0,0.0097]
[1722459716748,0.97324353,64638.0,64637.0,0.0097]
[1722459716959,0.90486753,64638.0,64637.0,0.0097]
[1722459717161,0.56318818,64638.0,64637.0,0.0087]
[1722459717370,0.56418818,64638.0,64637.0,0.0137]
[1722459717564,0.81613711,64638.0,64637.0,0.0137]
[1722459717997,0.49772211,64638.0,64637.0,0.0137]
[1722459718196,0.04060011,64638.0,64637.0,0.0137]
[1722459718568,0.39301984,64638.0,64637.0,0.0137]
[1722459718801,0.70243484,64638.0,64637.0,0.0137]
[1722459719011,0.24231284,64638.0,64637.0,0.0087]
[1722459719220,0.24231284,64638.0,64637.0,0.0716]
[1722459719221,0.21062574,64638.0,64637.0,0.0716]
[1722459719426,0.59076444,64638.0,64637.0,0.0726]
[1722459719644,0.58576444,64638.0,64637.0,0.0726]
[1722459719849,0.15562001,64638.0,64637.0,0.0716]
[1722459720087,0.17988276,64638.0,64637.0,0.0716]
[1722459720287,0.02917576,64638.0,64637.0,0.0716]
[1722459720443,0.00491301,64638.0,64637.0,0.0716]
[1722459721252,0.00791301,64638.0,64637.0,0.22115172]
[1722459721455,0.00791301,64638.0,64637.0,0.68528172]
[1722459721610,0.00491301,64638.0,64637.0,0.37586172]
[1722459721811,0.00491301,64638.0,64637.0,0.22115172]
[1722459722675,0.00391301,64638.0,64637.0,0.37586172]
[1722459722907,0.00391301,64638.0,64637.0,0.22115172]
[1722459723081,0.00191301,64638.0,64637.0,0.37686172]
[1722459723304,0.00191301,64638.0,64637.0,0.0866]
[1722459723438,0.00191301,64638.0,64637.0,0.22615172]
[1722459723819,0.02617183,64638.0,64637.0,0.22215172]
[1722459724228,0.02617183,64638.0,64637.0,0.23127789]
[1722459724432,0.02617183,64638.0,64637.0,0.23727789]
[1722459724813,0.00291301,64638.0,64637.0,0.24027789]
[1722459725018,0.00191301,64638.0,64637.0,0.49504225]
[1722459725180,0.00191301,64638.0,64637.0,1.32732789]
[1722459725378,0.00191301,64638.0,64637.0,1.32332789]
[1722459725826,0.00291301,64638.0,64637.0,1.33032789]
[1722459726229,0.00091301,64638.0,64637.0,1.32032789]
[1722459726596,0.00191301,64638.0,64637.0,1.32732789]
[1722459727019,0.00091301,64638.0,64637.0,1.32032789]
[1722459727222,0.00091301,64638.0,64637.0,1.62974789]
[1722459727423,0.00191301,64638.0,64637.0,1.32732789]
[1722459727660,0.00291301,64638.0,64637.0,1.63874789]
[1722459727885,0.00291301,64638.0,64637.0,1.65874789]
[1722459728101,0.02616927,64638.0,64637.0,1.65674789]
[1722459728304,0.02525626,64638.0,64637.0,1.77935321]
[1722459728511,0.0015542,64659.0,64653.0,0.25467]
[1722459728715,0.44858472,64660.0,64656.0,0.154664]
[1722459728826,0.1457,64670.0,64657.0,0.14955172]
[1722459728827,0.0793,64670.0,64657.0,0.14955172]
[1722459729228,0.233931,64670.0,64657.0,0.14955172]
[1722459729649,0.39243214,64670.0,64657.0,0.14955172]
[1722459729859,0.003,64659.0,64657.0,0.14955172]
[1722459730376,0.0793,64670.0,64658.0,0.00305121]
[1722459730584,0.0793,64670.0,64659.0,0.14955172]
[1722459730585,0.07476412,64669.0,64659.0,0.14955172]
[1722459730786,0.07476412,64662.0,64659.0,0.14955172]
[1722459731386,0.0015542,64668.0,64659.0,0.14955172]
[1722459731590,0.0015542,64668.0,64661.0,0.0646]
[1722459731802,0.02425299,64662.0,64661.0,0.0646]
[1722459732008,0.02425299,64662.0,64661.0,0.332052]
[1722459732161,0.06814667,64673.0,64669.0,0.0625]
[1722459732917,0.06814667,64673.0,64670.0,0.14955172]
[1722459733390,0.06814667,64673.0,64672.0,0.0786]
[1722459733592,0.06814667,64673.0,64672.0,0.22815172]
[1722459733829,0.06814667,64673.0,64672.0,0.70202972]
[1722459734046,0.06914667,64673.0,64672.0,1.53023372]
[1722459734479,0.06914667,64673.0,64672.0,0.91172972]
[1722459734698,0.07014667,64673.0,64672.0,0.89872972]
[1722459734915,0.06914667,64673.0,64672.0,0.88972972]
[1722459735156,0.06914667,64673.0,64672.0,0.90972972]
[1722459735410,0.06814667,64673.0,64672.0,0.92272972]
[1722459735616,0.09239235,64673.0,64672.0,0.92472972]
[1722459735816,0.09239235,64673.0,64672.0,0.92972972]
[1722459736036,0.02424568,64673.0,64672.0,0.92972972]
[1722459736216,0.02424568,64673.0,64672.0,1.23198172]
[1722459736857,0.00091301,64677.0,64676.0,0.1]
[1722459737083,0.00091301,64677.0,64676.0,0.27255172]
[1722459737273,0.0015542,64691.0,64690.0,0.1]
[1722459737479,0.44858472,64700.0,64691.0,0.0647]
[1722459737684,0.60314472,64700.0,64692.0,0.15259768]
[1722459737919,0.077,64705.0,64692.0,0.15259768]
[1722459737920,0.154576,64693.0,64692.0,0.14955172]
[1722459738120,0.00386396,64699.0,64692.0,0.14955172]
[1722459738121,0.30913,64698.0,64692.0,0.14955172]
[1722459738270,0.154576,64693.0,64692.0,0.14955172]
[1722459738447,0.309143,64695.0,64692.0,0.14955172]
[1722459738661,0.309132,64698.0,64692.0,0.14955172]
[1722459738861,0.00386433,64697.0,64692.0,0.14955172]
[1722459739122,0.154576,64693.0,64692.0,0.14955172]
[1722459739324,0.20433812,64694.0,64692.0,0.14955172]
[1722459739534,0.237178,64692.0,64686.0,0.1]
[1722459739761,0.0826,64692.0,64687.0,0.14955172]
[1722459740103,0.024242,64691.0,64688.0,0.1]
[1722459740220,0.0826,64692.0,64689.0,0.14955172]
[1722459740648,0.006,64693.0,64689.0,0.14955172]
[1722459740846,0.0826,64706.0,64694.0,0.0659]
[1722459741047,0.0826,64706.0,64695.0,0.30716728]
[1722459741294,0.0826,64712.0,64702.0,0.1]
[1722459741499,0.0826,64712.0,64702.0,0.24955172]
[1722459741702,0.82212072,64718.0,64702.0,0.24955172]
[1722459741703,0.0826,64718.0,64702.0,0.62450572]
[1722459741917,0.09008101,64722.0,64702.0,1.51752372]
[1722459742121,0.00958101,64722.0,64702.0,1.88896412]
[1722459742543,0.00958101,64722.0,64702.0,1.9292728]
[1722459743408,0.00958101,64722.0,64719.0,0.1]
[1722459743609,0.00958101,64722.0,64720.0,0.14955172]
[1722459744052,0.00958101,64722.0,64720.0,0.15259381]
[1722459744465,0.00958101,64722.0,64721.0,0.08927683]
[1722459744680,0.00958101,64722.0,64721.0,0.29717485]
[1722459744899,0.01258101,64722.0,64721.0,0.29413312]
[1722459745389,0.01258101,64722.0,64721.0,0.31713312]
[1722459745598,0.01558101,64722.0,64721.0,1.16437355]
[1722459745810,0.01558101,64722.0,64721.0,1.11967812]
[1722459746019,0.01558101,64722.0,64721.0,1.12767812]